bitfinex/quotes_ETHUSD_20240618
["timestamp","ask_amount","ask_price","bid_price","bid_amount"]
[1718730380527,2.91923,3425.6,3424.6,2.91998]
[1718730380827,2.94928008,3425.5,3424.6,3.446578]
[1718730380999,2.91936,3425.4,3424.6,0.526598]
[1718730381202,2.94946008,3425.3,3424.3,2.92028]
[1718730381438,2.94946008,3425.3,3424.0,2.3619]
[1718730381439,2.91963,3425.1,3424.2,2.92038]
[1718730381731,2.94972008,3425.0,3424.2,2.92038]
[1718730382033,2.94972008,3425.0,3424.1,3.726112]
[1718730382200,2.94972008,3425.0,3424.2,0.8862112]
[1718730382402,2.91993,3424.8,3423.7,2.92075]
[1718730382602,0.03000008,3424.7,3423.8,3.0]
[1718730383033,0.03000008,3424.7,3423.5,2.3619]
[1718730383240,0.03000008,3424.7,3423.6,0.528301]
[1718730384040,2.92005,3424.6,3423.6,3.449191]
[1718730384251,2.92005,3424.6,3423.2,2.88]
[1718730384252,2.9203,3424.3,3423.4,2.92105]
[1718730384407,2.91964,3425.1,3423.9,2.92062]
[1718730384607,2.91964,3425.1,3423.8,2.92073]
[1718730384608,0.03000008,3425.0,3424.0,2.92053]
[1718730384826,0.03000008,3425.0,3423.8,2.92073]
[1718730384827,0.03000008,3425.0,3424.4,2.92021]
[1718730385028,0.03000008,3425.0,3424.1,3.56298107]
[1718730385029,3.0,3425.6,3424.5,2.92013]
[1718730385333,2.94935008,3425.5,3424.6,0.292013]
[1718730385503,0.03000008,3425.5,3424.6,2.92004]
[1718730385708,0.03000008,3425.5,3424.9,2.91971]
[1718730385904,0.03000008,3425.5,3424.4,2.92021]
[1718730386133,0.03000008,3425.5,3424.7,2.91995]
[1718730386337,12.6377,3426.2,3424.5,0.3504185]
[1718730386338,6.4277,3426.2,3424.5,0.292021]
[1718730386539,0.03000008,3426.1,3424.6,3.7912011]
[1718730386849,2.91912,3425.7,3424.7,2.91995]
[1718730387145,2.9195,3425.3,3424.6,0.3212211]
[1718730387348,2.9195,3425.3,3424.0,2.92051]
[1718730387349,0.03000008,3425.2,3423.8,5.9207]
[1718730387524,0.03000008,3425.2,3424.2,0.55]
[1718730387711,0.03000008,3425.2,3424.7,2.91994]
[1718730388116,0.03000008,3425.2,3424.5,2.92012]
[1718730388422,2.9192,3425.6,3424.6,2.92003]
[1718730388743,0.03000008,3425.5,3424.6,2.92003]
[1718730389519,2.91938,3425.4,3424.5,3.55916]
[1718730389721,0.03000008,3425.3,3424.5,3.55916]
[1718730390350,0.03000008,3425.3,3424.4,2.92021]
[1718730390351,2.91978,3425.0,3424.1,3.504586]
[1718730390642,0.03000008,3424.9,3424.1,2.92046]
[1718730391025,0.03000008,3425.3,3424.3,2.92028]
[1718730391227,0.03000008,3425.3,3423.7,2.92079]
[1718730391228,0.03000008,3425.3,3424.4,3.212238]
[1718730391412,2.94946008,3425.3,3424.4,3.212238]
[1718730391613,2.91964,3425.1,3424.4,0.292028]
[1718730391956,2.91988,3424.8,3423.8,2.92065]
[1718730392248,0.03000008,3424.7,3423.8,2.92065]
[1718730392416,2.94997008,3424.7,3423.9,3.212675]
[1718730392618,2.94997008,3424.7,3423.9,2.92061]
[1718730393137,2.94997008,3424.7,3423.4,2.92102]
[1718730393138,0.03000008,3424.7,3423.4,2.92102]
[1718730393343,2.92047,3424.2,3423.3,2.92114]
[1718730393649,0.03000008,3424.1,3423.2,3.213367]
[1718730393849,0.03000008,3424.1,3423.4,2.92106]
[1718730394019,2.95048008,3424.1,3423.3,0.3213367]
[1718730394360,2.92062,3424.0,3423.3,0.3213367]
[1718730394569,2.92073,3423.8,3423.2,0.292127]
[1718730394718,0.03000008,3423.7,3423.2,0.292127]
[1718730395117,0.03000008,3423.7,3422.9,2.92149]
[1718730395318,2.92099,3423.5,3422.2,2.92205]
[1718730395549,2.95115008,3423.4,3422.3,0.53458326]
[1718730396186,2.92092,3423.6,3422.7,2.92165]
[1718730396400,2.92108,3423.4,3422.6,2.92173]
[1718730396702,2.95120008,3423.3,3422.4,2.92184]
[1718730396845,0.03000008,3423.2,3422.5,3.214004]
[1718730397049,0.03000008,3423.2,3422.5,2.92182]
[1718730397644,2.95126008,3423.2,3422.3,2.92201]
[1718730398003,2.92166,3422.8,3421.9,3.0]
[1718730398148,0.03000008,3422.7,3421.7,2.92252]
[1718730398350,2.95167008,3422.7,3421.8,0.541142]
[1718730398672,0.03000008,3422.7,3421.4,3.0]
[1718730398985,2.92183,3422.6,3421.6,2.9226]
[1718730399286,2.95167008,3422.7,3421.6,3.507133]
[1718730399287,2.95185008,3422.5,3421.6,3.507133]
[1718730399452,2.92203,3422.3,3421.3,2.9228]
[1718730399761,2.92203,3422.3,3420.5,1.22155091]
[1718730399762,2.92249,3421.8,3420.8,2.92328]
[1718730399963,0.2577,3422.4,3421.0,2.9231]
[1718730399964,0.03000008,3421.7,3421.0,2.9231]
[1718730400295,2.92261,3421.6,3420.7,2.92337]
[1718730400444,0.03000008,3421.5,3420.6,0.37213509]
[1718730400793,2.95271008,3421.5,3420.6,2.92345]
[1718730400949,2.95271008,3421.5,3420.7,2.92334]
[1718730400950,0.03000008,3421.5,3420.7,2.92334]
[1718730401153,0.03000008,3421.5,3420.8,2.92326]
[1718730401855,0.28770008,3421.5,3420.7,2.92334]
[1718730402064,0.28770008,3421.5,3420.1,2.92383]
[1718730402286,0.28770008,3421.5,3420.8,2.92322]
[1718730402594,0.28770008,3421.5,3420.5,2.92353]
[1718730402595,0.03000008,3421.6,3420.7,5.84674]
[1718730402913,3.0,3422.3,3421.3,2.92285]
[1718730402914,0.03000008,3422.0,3421.3,2.92285]
[1718730403066,0.03000008,3422.0,3421.2,2.92295]
[1718730403269,6.17,3422.4,3421.2,2.4825]
[1718730403474,0.37333212,3423.3,3420.9,0.6723727]
[1718730403475,0.03000008,3422.0,3420.9,0.6723727]
[1718730403807,2.9221,3422.2,3420.9,2.92315]
[1718730403956,0.03000008,3422.1,3421.0,0.01486967]
[1718730404157,0.03000008,3422.1,3420.7,3.0]
[1718730404158,0.03000008,3422.3,3421.5,2.92265]
[1718730404358,0.03000008,3422.3,3420.8,0.55]
[1718730404359,0.03000008,3422.3,3422.0,2.92225]
[1718730404614,6.17,3423.0,3421.8,2.92243]
[1718730404615,0.03000008,3422.6,3421.8,2.92243]
[1718730404918,0.03000008,3422.6,3421.4,2.92277]
[1718730405052,0.03000008,3422.6,3421.5,0.05844775]
[1718730405258,0.03000008,3422.9,3421.8,2.92236]
[1718730405486,0.03000008,3422.9,3422.1,2.92213]
[1718730406097,3.03000008,3422.9,3421.5,2.4449]
[1718730406311,0.03000008,3422.9,3422.5,2.92176]
[1718730406496,0.03000008,3423.2,3422.8,2.92158]
[1718730407071,0.03000008,3423.2,3422.7,2.92166]
[1718730407389,0.03000008,3423.2,3422.6,2.92175]
[1718730407593,0.03000008,3423.2,3422.0,0.292233]
[1718730407594,2.95124008,3423.2,3422.1,2.92217]
[1718730407781,0.03000008,3423.2,3422.2,2.92208]
[1718730407967,0.03000008,3423.2,3421.7,2.92249]
[1718730407968,2.9218,3422.6,3421.7,2.92249]
[1718730408168,0.03000008,3422.5,3421.6,0.27664159]
[1718730408370,5.6949,3423.7,3421.3,0.3215159]
[1718730408371,9.12133008,3423.1,3422.2,2.92208]
[1718730408570,3.0,3423.0,3422.3,2.922]
[1718730408810,2.92125,3423.2,3421.3,0.3215159]
[1718730408811,2.92202,3422.3,3421.3,0.3215159]
[1718730409043,6.17,3422.9,3421.1,8.2542]
[1718730409225,6.17,3422.9,3421.6,2.92257]
[1718730409450,6.17,3422.9,3421.9,2.4921]
[1718730409742,6.17,3423.6,3423.5,2.92098]
[1718730409957,0.2577,3424.7,3423.6,2.92088]
[1718730409958,6.17,3424.2,3423.6,2.92088]
[1718730410241,6.17,3424.2,3423.5,2.92096]
[1718730410453,6.17,3424.2,3423.8,2.92069]
[1718730410676,6.17,3424.2,3423.7,2.92074]
[1718730411462,0.03000008,3424.1,3422.9,2.774]
[1718730411615,2.92063,3424.0,3423.1,2.92124]
[1718730411814,0.03000008,3423.9,3423.2,2.92122]
[1718730412118,0.03000008,3424.0,3423.5,2.92095]
[1718730412323,0.03000008,3424.3,3423.8,2.92068]
[1718730412540,6.17,3424.8,3423.9,2.92064]
[1718730412541,0.03000008,3424.6,3423.9,2.92064]
[1718730412936,0.03000008,3424.6,3423.2,2.92122]
[1718730413132,0.03000008,3424.6,3423.7,5.84154]
[1718730413133,2.95005008,3424.6,3423.7,5.84154]
[1718730413445,5.9202,3424.5,3423.3,2.92111]
[1718730413750,0.03000008,3424.4,3423.3,2.92111]
[1718730413965,0.03000008,3424.4,3423.1,2.92128]
[1718730414180,0.03000008,3424.4,3422.8,4.551776]
[1718730414181,2.92068,3423.9,3423.0,2.9214]
[1718730414342,0.03000008,3423.8,3423.1,2.92131]
[1718730414846,0.03000008,3423.8,3423.1,2.92129]
[1718730415074,0.03000008,3423.8,3423.1,0.292129]
[1718730415377,0.2577,3424.2,3423.4,2.92099]
[1718730415378,0.03000008,3424.0,3423.4,2.92099]
[1718730415538,0.03000008,3424.0,3423.5,2.92098]
[1718730415989,3.17774,3424.7,3423.5,3.505173]
[1718730416284,3.17774,3424.7,3423.1,0.292129]
[1718730416285,3.03000008,3424.6,3423.7,2.92073]
[1718730416774,2.92023,3424.4,3423.6,2.92089]
[1718730416957,0.03000008,3424.3,3423.5,2.92098]
[1718730417138,0.03000008,3424.3,3423.2,2.92116]
[1718730417337,2.95033008,3424.3,3423.3,2.92115]
[1718730417569,2.92039,3424.2,3423.3,2.92115]
[1718730417783,0.03000008,3424.1,3423.3,2.92115]
[1718730418239,2.92021,3424.4,3423.5,2.92097]
[1718730418440,0.03000008,3424.3,3423.5,2.92097]
[1718730418673,0.03000008,3424.3,3423.1,0.292129]
[1718730418845,2.92007,3424.6,3423.1,0.292129]
[1718730418846,3.03000008,3424.5,3423.9,2.92061]
[1718730419050,3.03000008,3424.5,3423.5,2.92096]
[1718730419051,0.03000008,3424.5,3423.8,2.92072]
[1718730419734,3.03000008,3424.5,3423.8,2.92072]
[1718730420145,3.03000008,3424.5,3423.8,2.92073]
[1718730420387,0.03000008,3424.4,3423.8,2.92073]
[1718730420757,3.03000008,3424.6,3423.9,2.92063]
[1718730421197,2.9203,3424.3,3423.3,2.92115]
[1718730421390,2.9203,3424.3,3423.5,2.92098]
[1718730421391,0.03000008,3424.2,3423.5,2.92098]
[1718730421593,0.03000008,3424.2,3423.4,2.92104]
[1718730421792,0.03000008,3424.2,3423.3,2.92115]
[1718730422283,2.92022,3424.4,3423.6,2.92089]
[1718730422453,0.03000008,3424.3,3423.6,2.92089]
[1718730422865,3.0,3424.6,3424.1,2.92041]
[1718730423178,2.91988,3424.8,3424.0,2.92054]
[1718730423364,3.03000008,3424.7,3424.0,2.92054]
[1718730424280,3.03000008,3424.7,3423.6,2.92086]
[1718730424281,5.95004008,3424.7,3423.3,2.92112]
[1718730424488,2.92056,3424.0,3423.2,2.92122]
[1718730424785,3.03000008,3424.7,3422.7,9.8221]
[1718730424786,2.95065008,3423.9,3423.0,2.9214]
[1718730424986,0.03000008,3423.9,3422.8,0.98221]
[1718730425297,0.03000008,3423.9,3422.7,2.4921]
[1718730425590,0.03000008,3424.3,3423.4,2.92106]
[1718730425747,3.03000008,3424.3,3423.3,2.92108]
[1718730425946,0.03000008,3424.2,3423.5,2.92094]
[1718730426149,0.03000008,3424.2,3423.4,2.92105]
[1718730426361,2.92048,3424.1,3422.7,2.4921]
[1718730426566,0.03000008,3424.0,3422.8,0.55]
[1718730426778,0.03000008,3424.0,3422.7,2.4921]
[1718730426951,0.03000008,3424.0,3422.5,2.92178]
[1718730426952,2.92116,3423.3,3422.5,2.92183]
[1718730427152,0.03000008,3423.2,3422.6,2.92174]
[1718730427351,0.03000008,3423.4,3422.6,3.506097]
[1718730427791,0.03000008,3423.4,3422.6,0.584357]
[1718730428007,0.03000008,3423.4,3422.5,2.92184]
[1718730428188,2.95109008,3423.4,3422.6,2.92171]
[1718730428571,2.95109008,3423.4,3422.5,2.92182]
[1718730428572,0.03000008,3423.4,3422.5,2.92182]
[1718730428781,0.03000008,3423.6,3422.8,2.92151]
[1718730429176,0.03000008,3423.6,3422.9,2.92146]
[1718730429492,0.03000008,3423.6,3422.7,2.92165]
[1718730429493,2.921,3423.5,3422.7,2.92165]
[1718730429719,2.92133,3423.1,3421.9,3.0]
[1718730429926,0.28770008,3423.4,3421.8,3.0]
[1718730429927,2.92151,3422.9,3421.8,3.0]
[1718730430066,0.03000008,3422.8,3421.9,0.8147]
[1718730430401,2.92134,3423.1,3422.3,2.922]
[1718730430616,0.03000008,3423.0,3422.3,2.922]
[1718730430776,0.03000008,3423.0,3421.9,0.6687]
[1718730431106,0.03000008,3423.0,3421.6,5.147]
[1718730431107,2.92186,3422.5,3421.5,2.92269]
[1718730431396,4.08958804,3423.9,3423.0,2.92135]
[1718730431625,0.03000008,3423.5,3422.5,2.3923]
[1718730431767,0.2577,3423.9,3422.8,2.92155]
[1718730431768,3.03000008,3423.8,3422.8,2.92155]
[1718730431962,2.92091,3423.6,3422.8,2.92155]
[1718730432166,0.03000008,3423.5,3422.8,2.92156]
[1718730432612,12.6377,3424.4,3422.5,5.31406]
[1718730432899,12.6377,3424.4,3423.1,2.92125]
[1718730432900,0.03000008,3424.0,3423.1,2.92125]
[1718730433068,0.03000008,3424.0,3423.4,2.89106]
[1718730433266,0.03000008,3424.1,3423.5,2.92097]
[1718730433568,2.92015,3424.5,3423.8,2.92065]
[1718730433569,0.03000008,3424.3,3423.8,2.92065]
[1718730433787,0.03000008,3424.3,3423.8,3.212775]
[1718730434094,0.03000008,3424.3,3423.5,2.92097]
[1718730434796,0.03000008,3424.5,3423.5,2.92097]
[1718730434964,2.95013008,3424.5,3423.7,2.9208]
[1718730435167,0.03000008,3424.5,3422.8,2.3754]
[1718730435513,0.03000008,3424.9,3423.8,2.3754]
[1718730435668,0.03000008,3424.9,3424.1,2.92045]
[1718730435872,0.03000008,3425.3,3424.5,2.92012]
[1718730436294,0.03000008,3425.3,3424.7,2.91994]
[1718730436597,0.03000008,3425.3,3424.6,2.92003]
[1718730436804,0.03000008,3425.3,3423.8,3.182436]
[1718730437010,2.91988,3424.8,3423.9,2.92062]
[1718730437301,0.03000008,3424.7,3423.9,2.92062]
[1718730437507,0.2577,3425.0,3424.3,2.92027]
[1718730437667,0.03000008,3424.9,3424.5,2.92005]
[1718730437869,0.03000008,3425.4,3424.5,2.92005]
[1718730438120,3.03000008,3425.4,3424.7,2.91992]
[1718730438799,2.91945,3425.3,3424.5,2.92012]
[1718730438994,0.03000008,3425.2,3424.5,2.92012]
[1718730439204,5.94954008,3425.2,3424.3,2.92027]
[1718730439365,5.94954008,3425.2,3423.7,2.774]
[1718730439366,0.03000008,3425.2,3423.8,2.92072]
[1718730439566,0.03000008,3425.2,3423.7,2.774]
[1718730439823,2.9198,3424.9,3423.7,2.774]
[1718730440101,2.91948,3425.3,3423.8,1.419485]
[1718730440102,2.91945,3425.3,3423.8,1.419485]
[1718730440306,5.94955008,3425.2,3423.8,1.419485]
[1718730440505,2.91991,3424.8,3423.8,3.47072]
[1718730440844,0.03000008,3424.7,3424.3,2.92027]
[1718730441126,3.0,3425.4,3424.5,2.92012]
[1718730441409,7.08117804,3426.0,3425.1,2.91957]
[1718730441571,0.03000008,3425.9,3425.3,2.91943]
[1718730441772,0.03000008,3425.9,3424.8,2.91983]
[1718730442071,0.03000008,3425.9,3425.4,2.91935]
[1718730442277,0.03000008,3426.3,3425.4,2.91935]
[1718730442503,0.03000008,3426.3,3425.3,2.91944]
[1718730442710,0.03000008,3426.3,3424.9,2.3728]
[1718730442711,0.03000008,3426.4,3425.9,2.91887]
[1718730442881,2.91809,3426.9,3425.5,2.91919]
[1718730443083,2.91809,3426.9,3425.2,2.91953]
[1718730443084,3.0,3426.8,3426.2,2.91866]
[1718730443281,0.03000008,3426.7,3426.2,2.91866]
[1718730444308,3.0,3426.9,3426.2,2.91866]
[1718730444309,0.03000008,3426.8,3426.2,2.91866]
[1718730444834,0.03000008,3426.8,3425.9,2.3903]
[1718730444972,0.03000008,3426.8,3426.2,2.91861]
[1718730445173,0.03000008,3426.8,3426.3,2.91859]
[1718730445373,0.03000008,3426.9,3426.0,2.91877]
[1718730445607,0.03000008,3426.9,3425.5,2.774]
[1718730445608,0.03000008,3426.9,3426.5,2.9184]
[1718730445818,3.17546,3427.3,3426.5,2.9184]
[1718730445819,3.03000008,3427.2,3426.5,2.9184]
[1718730446175,3.0,3427.1,3426.5,2.9184]
[1718730446406,6.17,3427.5,3425.5,2.774]
[1718730446407,6.17,3427.5,3426.8,2.91815]
[1718730446585,2.91753,3427.6,3426.3,2.91857]
[1718730446586,3.03000008,3427.4,3426.3,2.91857]
[1718730446915,5.94766008,3427.4,3426.5,2.91839]
[1718730447115,3.0,3427.3,3426.8,2.91817]
[1718730447277,3.0,3427.3,3426.7,2.91825]
[1718730447471,5.91752,3427.6,3426.8,2.91816]
[1718730447774,5.94752008,3427.6,3426.8,2.91816]
[1718730448606,2.91767,3427.4,3426.6,2.91831]
[1718730448818,3.03000008,3427.3,3426.6,2.91831]
[1718730449017,0.03000008,3427.2,3426.6,2.91831]
[1718730449215,3.0,3427.3,3426.8,2.91816]
[1718730449525,3.0,3427.3,3426.7,2.91823]
[1718730449526,5.9175,3427.6,3426.7,2.91825]
[1718730449684,3.21776,3427.3,3426.5,2.91842]
[1718730449882,0.03000008,3427.2,3426.5,2.91842]
[1718730450194,0.3,3427.3,3426.7,2.91819]
[1718730450404,0.3,3427.3,3426.6,2.91833]
[1718730450589,0.3225307,3427.2,3426.6,2.91833]
[1718730451210,0.3225307,3427.2,3426.7,2.91823]
[1718730451629,0.3225307,3427.2,3426.4,2.4039]
[1718730451908,0.3225307,3427.2,3426.5,2.97677226]
[1718730452085,0.3225307,3427.2,3426.0,2.91884]
[1718730452086,2.9181,3426.9,3426.0,2.91884]
[1718730452289,0.03000008,3426.8,3425.9,2.91893]
[1718730452475,0.03000008,3426.8,3426.2,2.91864]
[1718730452687,0.3225307,3426.8,3426.1,2.91875]
[1718730452916,0.3225307,3426.8,3425.8,5.21514]
[1718730452917,3.03000008,3427.3,3426.7,2.91825]
[1718730453117,3.17507,3427.8,3426.0,5.69283]
[1718730453303,2.91749,3427.6,3426.5,2.91839]
[1718730453473,2.91749,3427.6,3426.0,3.295514]
[1718730453474,0.03000008,3427.5,3426.7,2.91818]
[1718730453808,3.03000008,3427.5,3426.5,2.91842]
[1718730454116,0.03000008,3427.5,3426.5,2.91841]
[1718730454504,2.94757008,3427.5,3426.6,2.91833]
[1718730454680,0.03000008,3427.5,3426.8,2.91809]
[1718730455012,2.94750008,3427.6,3426.8,2.91809]
[1718730455511,3.0,3427.5,3426.8,2.91809]
[1718730455837,3.0,3427.5,3427.0,2.91799]
[1718730456032,3.0,3427.6,3426.9,2.91807]
[1718730456310,3.0,3427.8,3427.0,2.91799]
[1718730456496,0.03000008,3427.7,3427.0,2.91799]
[1718730456701,0.03000008,3427.7,3426.9,2.91807]
[1718730456702,0.29473301,3427.6,3426.9,2.91807]
[1718730456890,0.03000008,3427.5,3426.9,2.91807]
[1718730457093,0.03000008,3427.5,3426.8,2.91815]
[1718730457486,2.91773,3427.4,3426.6,2.91832]
[1718730457691,2.91791,3427.2,3426.3,2.91857]
[1718730457888,0.03000008,3427.1,3426.3,2.91857]
[1718730458622,0.03000008,3427.1,3426.0,2.774]
[1718730458823,0.03000008,3427.1,3425.6,3.0]
[1718730458824,2.91829,3426.7,3425.9,2.91886]
[1718730459003,0.03000008,3426.6,3425.9,2.91886]
[1718730459189,0.03000008,3426.8,3426.0,2.91884]
[1718730459387,2.91826,3426.7,3425.9,2.91892]
[1718730459590,2.94835008,3426.6,3425.5,2.91927]
[1718730459788,0.03000008,3426.6,3425.3,2.2708]
[1718730459996,0.2577,3427.1,3425.3,2.2708]
[1718730459997,0.03000008,3426.8,3425.3,2.2708]
[1718730460187,2.91869,3426.2,3425.3,5.2708]
[1718730460384,2.91869,3426.2,3425.4,2.91936]
[1718730460582,2.91826,3426.7,3425.7,2.91903]
[1718730460927,2.91836,3426.6,3425.8,2.91902]
[1718730461139,2.91836,3426.6,3425.3,5.2708]
[1718730461140,2.91815,3426.9,3426.0,2.91877]
[1718730461281,0.2577,3427.1,3425.7,5.6931]
[1718730461480,3.0,3427.3,3426.5,2.91834]
[1718730461699,6.4277,3427.7,3426.7,2.91817]
[1718730461921,0.03000008,3427.6,3426.9,2.91808]
[1718730462133,0.6225307,3427.7,3426.9,2.91808]
[1718730462335,0.03000008,3427.6,3426.8,0.55]
[1718730462626,0.03000008,3427.6,3426.8,3.46815]
[1718730462799,2.94749008,3427.6,3426.8,3.46815]
[1718730463002,2.91773,3427.4,3426.5,2.91841]
[1718730463203,0.03000008,3427.3,3426.5,2.91841]
[1718730463518,0.03000008,3427.3,3426.6,2.91833]
[1718730463817,0.03000008,3427.3,3426.5,2.91834]
[1718730463980,0.03000008,3427.4,3426.5,2.91834]
[1718730464180,2.9175,3427.6,3426.9,2.91808]
[1718730464380,0.03000008,3427.5,3426.9,2.91808]
[1718730464616,3.2577,3428.2,3426.8,2.774]
[1718730464819,0.03000008,3428.1,3427.4,2.91761]
[1718730465041,0.03000008,3428.1,3426.8,2.774]
[1718730465042,3.03000008,3428.1,3427.5,2.91751]
[1718730465189,0.03000008,3428.1,3427.5,2.9175]
[1718730465389,3.0,3428.6,3427.9,2.91717]
[1718730465629,0.03000008,3428.5,3427.9,2.9172]
[1718730465791,3.0,3428.6,3428.0,2.91712]
[1718730466121,0.03000008,3428.5,3427.4,2.91762]
[1718730466323,0.03000008,3428.5,3427.6,2.91748]
[1718730466498,0.03000008,3428.5,3427.7,0.55]
[1718730466700,3.0,3428.6,3428.0,2.91713]
[1718730466910,3.0,3429.0,3428.0,2.91713]
[1718730466911,2.9164,3428.9,3428.0,2.9171]
[1718730467233,2.91648,3428.8,3428.0,2.9171]
[1718730467416,0.03000008,3428.7,3428.0,2.9171]
[1718730467723,0.03000008,3428.9,3427.8,2.91725]
[1718730467921,0.03000008,3428.9,3428.3,2.91689]
[1718730468335,0.03000008,3428.9,3428.0,2.91713]
[1718730468626,2.94639008,3428.9,3428.1,2.91703]
[1718730468791,2.94639008,3428.9,3428.2,2.91695]
[1718730468792,0.03000008,3428.9,3428.2,2.91695]
[1718730470028,0.03000008,3428.9,3427.9,0.55]
[1718730470188,2.91606,3429.3,3428.5,2.91669]
[1718730470394,6.17,3429.5,3428.5,2.91669]
[1718730470707,3.03000008,3429.4,3428.6,2.91663]
[1718730471040,9.34315,3430.0,3428.1,2.91703]
[1718730471305,9.34315,3430.0,3429.2,2.91612]
[1718730471306,0.03000008,3429.9,3429.2,2.91612]
[1718730471466,0.03000008,3429.9,3429.4,2.91595]
[1718730472051,2.91562,3429.8,3429.0,2.91623]
[1718730472274,2.91526,3430.3,3429.0,2.91623]
[1718730472275,9.08494,3430.6,3429.3,2.91602]
[1718730472575,0.03000008,3430.5,3429.5,2.91585]
[1718730472770,0.03000008,3430.5,3429.7,2.91567]
[1718730472982,2.91504,3430.5,3429.6,2.91578]
[1718730473278,0.03000008,3430.4,3429.7,2.91567]
[1718730473873,3.17239,3430.9,3429.2,2.91606]
[1718730474029,2.94477008,3430.8,3429.7,2.91569]
[1718730474227,2.94477008,3430.8,3430.0,2.91543]
[1718730474467,0.03000008,3430.8,3430.2,2.91526]
[1718730474776,0.03000008,3430.8,3430.0,2.91538]
[1718730475140,2.91485,3430.7,3429.9,2.91552]
[1718730475356,0.03000008,3430.6,3429.0,5.35646]
[1718730475546,2.9152,3430.3,3429.5,2.91584]
[1718730475747,0.03000008,3430.2,3429.6,2.91578]
[1718730475962,2.94531008,3430.2,3429.2,2.91606]
[1718730476161,0.29453101,3430.1,3429.5,2.91586]
[1718730477274,3.82442804,3432.6,3429.0,2.4402]
[1718730477275,0.2577,3431.0,3429.0,2.4402]
[1718730477569,0.2577,3431.0,3429.1,0.55]
[1718730477570,2.91488,3430.7,3429.1,0.55]
[1718730477915,5.94494008,3430.6,3429.8,2.91561]
[1718730478399,5.94494008,3430.6,3429.6,2.91574]
[1718730478400,3.0,3430.6,3430.1,2.91535]
[1718730478535,0.3,3430.6,3430.2,2.91528]
[1718730478935,0.3,3430.6,3429.1,0.55]
[1718730478936,0.3,3430.6,3429.7,2.91563]
[1718730479243,2.91521,3430.3,3429.5,2.91587]
[1718730479449,0.35253078,3430.2,3429.4,2.91588]
[1718730479666,3.0,3430.9,3430.0,2.91543]
[1718730479851,3.0,3430.9,3429.2,2.91612]
[1718730479852,0.03000008,3430.8,3430.2,2.91527]
[1718730480061,0.03000008,3431.0,3430.3,2.91519]
[1718730480375,0.03000008,3431.0,3430.2,2.91527]
[1718730480376,0.03000008,3431.0,3430.4,2.91509]
[1718730480577,2.94456008,3431.1,3429.5,2.91582]
[1718730480745,0.03000008,3431.1,3430.2,2.9152]
[1718730480939,0.03000008,3431.1,3429.6,0.55]
[1718730480940,0.03000008,3431.1,3430.0,2.91543]
[1718730481140,6.17,3431.2,3430.8,2.91476]
[1718730481341,6.17,3431.2,3430.1,0.55]
[1718730481342,0.2577,3431.5,3430.6,2.91492]
[1718730481544,0.2577,3431.5,3430.9,2.91468]
[1718730481545,0.03000008,3431.5,3430.9,2.91468]
[1718730481776,3.0,3431.7,3431.0,2.91453]
[1718730482445,5.91401,3431.7,3430.9,2.91467]
[1718730482643,6.17,3431.8,3431.2,2.91436]
[1718730482955,6.17,3431.8,3431.2,2.91435]
[1718730483356,6.17,3431.8,3431.3,2.91434]
[1718730483675,6.4277,3432.4,3431.5,2.91416]
[1718730483845,2.94350008,3432.3,3431.3,2.91428]
[1718730484042,0.03000008,3432.3,3430.7,5.34335]
[1718730484255,2.91391,3431.9,3431.1,2.91449]
[1718730484466,2.91368,3432.1,3431.1,2.91449]
[1718730484467,0.03000008,3431.8,3431.1,2.91449]
[1718730484803,2.94377008,3432.0,3431.2,2.91442]
[1718730485088,2.91306,3432.9,3431.3,2.91434]
[1718730485089,2.91351,3432.3,3431.3,2.91434]
[1718730485382,6.17,3432.4,3431.5,2.91416]
[1718730485383,2.91358,3432.2,3431.5,2.91416]
[1718730485682,2.91358,3432.2,3431.4,2.91425]
[1718730485848,3.0,3432.3,3431.1,0.291454]
[1718730486047,2.91367,3432.1,3431.2,0.55]
[1718730486294,2.91376,3432.0,3431.2,3.46435]
[1718730486658,3.0,3432.3,3431.2,0.55]
[1718730486855,3.0,3432.3,3431.3,2.91433]
[1718730486856,2.91374,3432.1,3431.3,2.91433]
[1718730487144,2.91418,3431.5,3430.4,2.91511]
[1718730487346,3.0,3432.0,3430.8,2.91476]
[1718730487347,2.91393,3431.8,3430.8,2.91476]
[1718730487546,2.91393,3431.8,3430.9,2.91461]
[1718730487774,2.91403,3431.7,3430.9,2.91467]
[1718730487982,9.024,3432.1,3430.9,2.91467]
[1718730488188,9.024,3432.1,3431.2,2.91441]
[1718730488357,9.024,3432.1,3431.1,2.9145]
[1718730488358,2.91384,3431.9,3431.1,2.9145]
[1718730488545,2.91384,3431.9,3431.2,0.55]
[1718730489289,5.91367,3432.1,3431.3,2.91433]
[1718730489455,2.91379,3432.0,3431.2,3.46441]
[1718730489658,2.91402,3431.7,3430.4,4.026319]
[1718730489865,0.2577,3431.8,3430.3,2.774]
[1718730490076,0.2577,3431.8,3429.7,2.2582]
[1718730490077,2.91487,3430.7,3429.7,2.2582]
[1718730490272,0.2577,3431.8,3429.3,5.68999]
[1718730490273,2.91504,3430.5,3429.3,2.91602]
[1718730490484,2.9152,3430.3,3429.2,5.18407]
[1718730490659,2.9152,3430.3,3429.3,2.91604]
[1718730491177,3.0,3430.6,3429.9,2.91551]
[1718730491345,2.91462,3431.0,3430.2,2.91527]
[1718730491546,2.91528,3430.2,3429.4,2.91588]
[1718730491952,3.0,3431.2,3428.9,2.3568]
[1718730491953,3.20671,3431.1,3428.9,2.3568]
[1718730492153,3.0,3431.2,3429.2,2.91605]
[1718730492154,2.91538,3430.1,3429.2,2.91605]
[1718730492447,6.024,3431.1,3429.4,2.91592]
[1718730492673,2.9143,3431.4,3430.3,2.91516]